bitfinex/quotes_BTCUSD_20220201
["timestamp","ask_amount","ask_price","bid_price","bid_amount"]
[1643741526963,6.21489698,38727.0,38726.0,2.03676891]
[1643741527163,6.21489698,38727.0,38726.0,0.499259]
[1643741527364,6.21489698,38727.0,38726.0,0.15]
[1643741527563,6.21489698,38727.0,38726.0,0.499259]
[1643741527963,6.21489698,38727.0,38726.0,1.249259]
[1643741528363,6.21489698,38727.0,38726.0,0.497536]
[1643741528565,6.21489698,38727.0,38726.0,0.82392448]
[1643741528768,6.21489698,38727.0,38726.0,0.497536]
[1643741528967,6.21489698,38727.0,38726.0,1.097536]
[1643741529765,6.21489698,38727.0,38726.0,1.147536]
[1643741529965,6.21489698,38727.0,38726.0,0.547536]
[1643741530166,6.21489698,38727.0,38726.0,0.87396805]
[1643741530609,6.21489698,38727.0,38726.0,1.14744209]
[1643741531611,6.21489698,38727.0,38726.0,0.82101004]
[1643741531914,6.21489698,38727.0,38726.0,1.65851894]
[1643741532110,6.21489698,38727.0,38726.0,1.62101004]
[1643741532312,6.21489698,38727.0,38726.0,3.79260703]
[1643741532512,6.21489698,38727.0,38726.0,2.42960703]
[1643741532711,6.21489698,38727.0,38726.0,2.53303275]
[1643741532912,6.21489698,38727.0,38726.0,1.62960703]
[1643741533315,6.21489698,38727.0,38726.0,1.15780061]
[1643741533811,6.21489698,38727.0,38726.0,1.14746861]
[1643741534014,6.21489698,38727.0,38726.0,0.82101004]
[1643741534261,6.21489698,38727.0,38726.0,0.547536]
[1643741534660,6.21489698,38727.0,38726.0,0.87400869]
[1643741534859,6.21489698,38727.0,38726.0,0.997536]
[1643741536259,6.21489698,38727.0,38726.0,0.547536]
[1643741536669,6.21489698,38727.0,38726.0,0.5247903]
[1643741536861,6.21489698,38727.0,38726.0,0.198277]
[1643741537663,6.21489698,38727.0,38726.0,0.547536]
[1643741538108,6.21489698,38727.0,38726.0,0.349259]
[1643741539510,6.21489698,38727.0,38726.0,0.399259]
[1643741539712,6.21489698,38727.0,38726.0,0.449259]
[1643741540612,6.21489698,38727.0,38726.0,0.549259]
[1643741540913,6.21489698,38727.0,38725.0,0.00138141]
[1643741541116,1.06288592,38726.0,38725.0,0.00138141]
[1643741541315,1.41214492,38726.0,38725.0,0.00138141]
[1643741541512,1.41214492,38726.0,38721.0,0.38430676]
[1643741541513,1.46364492,38726.0,38721.0,0.38430676]
[1643741541760,1.149259,38725.0,38724.0,0.00138145]
[1643741541964,1.43689575,38725.0,38724.0,0.00138145]
[1643741542759,1.43689575,38725.0,38721.0,0.38430676]
[1643741542963,1.08763675,38725.0,38723.0,0.00138148]
[1643741543361,0.86666082,38724.0,38723.0,0.00138148]
[1643741543564,0.7015,38724.0,38723.0,0.00138148]
[1643741543770,0.91296848,38724.0,38723.0,0.00138148]
[1643741543967,0.7015,38724.0,38721.0,0.38430676]
[1643741544264,0.91468793,38724.0,38722.0,0.00138152]
[1643741544468,0.87275049,38723.0,38722.0,0.00138152]
[1643741544665,0.92425049,38723.0,38722.0,0.00138152]
[1643741544963,0.27425049,38723.0,38722.0,0.00138152]
[1643741545164,0.27425049,38723.0,38721.0,0.36312925]
[1643741545430,0.27425049,38723.0,38721.0,0.3645108]
[1643741545623,0.21046875,38722.0,38721.0,0.3645108]
[1643741545826,0.5,38722.0,38721.0,0.3645108]
[1643741546424,0.0515,38723.0,38721.0,0.36312925]
[1643741548426,1.61819811,38722.0,38721.0,0.36312925]
[1643741548630,2.0297375,38722.0,38721.0,0.36312925]
[1643741549262,1.800759,38722.0,38721.0,0.36312925]
[1643741549865,0.400759,38722.0,38721.0,0.36312925]
[1643741550066,0.0515,38722.0,38721.0,0.36312925]
[1643741551562,0.4515,38722.0,38721.0,0.36312925]
[1643741552464,0.25122143,38725.0,38721.0,0.36312925]
[1643741553109,6.21489698,38727.0,38721.0,0.36312925]
[1643741553709,6.21489698,38727.0,38722.0,0.0013815]
[1643741553710,0.0739214,38726.0,38722.0,0.0013815]
[1643741554609,0.57993148,38723.0,38722.0,0.0013815]
[1643741554814,0.57993148,38723.0,38721.0,0.36312925]
[1643741555012,0.22993148,38723.0,38722.0,0.0013815]
[1643741555712,0.62993148,38723.0,38722.0,0.0013815]
[1643741556012,0.62993148,38723.0,38721.0,0.36312925]
[1643741556212,0.4,38723.0,38721.0,0.3645108]
[1643741556664,6.21489698,38727.0,38721.0,0.3645108]
[1643741557167,0.2665796,38725.0,38721.0,0.36303854]
[1643741557367,0.400759,38724.0,38722.0,0.0012713]
[1643741557764,6.21489698,38727.0,38722.0,0.0012713]
[1643741558264,6.21489698,38727.0,38721.0,0.36303854]
[1643741558463,6.21489698,38727.0,38723.0,0.0012713]
[1643741558664,0.349259,38726.0,38723.0,0.0012713]
[1643741559265,0.2978156,38725.0,38723.0,0.0012713]
[1643741559465,1.58306527,38724.0,38721.0,0.36303854]
[1643741559665,1.58306527,38724.0,38722.0,0.0012713]
[1643741559868,1.07148297,38723.0,38722.0,0.0012713]
[1643741560065,1.41926351,38723.0,38722.0,0.0012713]
[1643741560265,1.46740629,38723.0,38722.0,0.0012713]
[1643741560511,1.54427712,38723.0,38722.0,0.0012713]
[1643741560713,1.54427712,38723.0,38721.0,0.36303854]
[1643741561012,0.57674175,38722.0,38721.0,0.36430987]
[1643741561213,0.0515,38724.0,38721.0,0.36430987]
[1643741561412,0.21198027,38723.0,38721.0,0.36430987]
[1643741561613,0.21945902,38723.0,38721.0,0.36430987]
[1643741561813,0.05,38723.0,38721.0,0.36430987]
[1643741562014,0.25165326,38723.0,38721.0,0.36303854]
[1643741562213,0.91181519,38722.0,38721.0,0.36303854]
[1643741562417,0.96181519,38722.0,38721.0,0.36303854]
[1643741562813,0.75,38722.0,38721.0,0.36303854]
[1643741563813,0.0515,38724.0,38721.0,0.36303854]
[1643741564664,0.0515,38724.0,38721.0,0.36433294]
[1643741565563,0.0515,38724.0,38721.0,0.36303854]
[1643741565763,0.0515,38724.0,38721.0,0.36432908]
[1643741566765,0.0515,38724.0,38721.0,0.36303854]
[1643741566964,0.0515,38724.0,38721.0,0.36432908]
[1643741567367,0.21872881,38723.0,38721.0,0.36432908]
[1643741567567,1.199259,38722.0,38721.0,0.36432908]
[1643741568020,0.0515,38724.0,38721.0,0.36303854]
[1643741568219,0.21691227,38726.0,38721.0,0.36303854]
[1643741569117,6.21489698,38727.0,38721.0,0.36303854]
[1643741569317,6.21489698,38727.0,38722.0,0.00129117]
[1643741570119,0.28479361,38724.0,38722.0,0.00129117]
[1643741570323,0.28479361,38724.0,38721.0,0.36303854]
[1643741570520,0.28479361,38724.0,38721.0,0.36432972]
[1643741571120,0.28479361,38724.0,38721.0,0.36190872]
[1643741571320,6.21489698,38727.0,38721.0,0.36190872]
[1643741571520,6.21489698,38727.0,38721.0,0.36061754]
[1643741571760,6.21489698,38727.0,38721.0,0.36190873]
[1643741572161,6.21481288,38727.0,38721.0,0.36190873]
[1643741572362,0.400759,38726.0,38721.0,0.36190873]
[1643741572563,0.65649437,38726.0,38721.0,0.36190873]
[1643741572761,0.65649437,38726.0,38721.0,0.36061754]
[1643741572964,0.65649437,38726.0,38722.0,0.00129106]
[1643741573163,0.28700935,38725.0,38722.0,0.00129106]
[1643741573363,0.58202491,38724.0,38722.0,0.00129106]
[1643741573563,1.01610266,38723.0,38722.0,0.00129106]
[1643741573765,1.44723999,38723.0,38722.0,0.00129106]
[1643741573966,1.49873999,38723.0,38721.0,0.08513321]
[1643741574168,1.49873999,38723.0,38720.0,0.00129108]
[1643741574169,1.3,38721.0,38720.0,0.00129108]
[1643741574369,1.649259,38721.0,38720.0,0.00129108]
[1643741574570,1.750759,38721.0,38720.0,0.00129108]
[1643741574767,1.850759,38721.0,38720.0,0.00129108]
[1643741575166,1.750759,38721.0,38720.0,0.00129108]
[1643741575427,1.700759,38721.0,38720.0,0.00129108]
[1643741575721,0.400759,38721.0,38720.0,0.00129108]
[1643741576315,0.62188081,38721.0,38720.0,0.00129108]
[1643741576517,0.62332537,38721.0,38720.0,0.00129108]
[1643741576717,0.6224055,38721.0,38720.0,0.00129108]
[1643741576917,0.400759,38721.0,38720.0,0.00129108]
[1643741577718,0.62319562,38721.0,38720.0,0.00129108]
[1643741577917,0.6206584,38721.0,38720.0,0.00129108]
[1643741578118,0.62242085,38721.0,38720.0,0.00129108]
[1643741578323,1.47523707,38720.0,38715.0,0.0187692]
[1643741578619,0.57962279,38719.0,38715.0,0.0187692]
[1643741578819,0.21148767,38718.0,38715.0,0.0187692]
[1643741579020,0.0515,38720.0,38715.0,0.0187692]
[1643741579263,0.0515,38720.0,38710.0,0.23298267]
[1643741579264,0.0515,38720.0,38712.0,0.05]
[1643741579565,0.1146,38726.0,38716.0,0.121115]
[1643741579762,6.21481288,38727.0,38716.0,0.171115]
[1643741579962,0.28682303,38722.0,38716.0,0.171115]
[1643741580165,0.21485968,38721.0,38712.0,0.1167]
[1643741580364,0.21485968,38721.0,38712.0,0.1667]
[1643741580563,0.21141643,38721.0,38712.0,0.1667]
[1643741580762,0.28682303,38722.0,38712.0,0.1667]
[1643741580967,0.20954436,38721.0,38712.0,0.1667]
[1643741581164,0.40223828,38722.0,38712.0,0.1667]
[1643741581363,0.000611,38719.0,38712.0,0.1667]
[1643741582365,0.24819237,38725.0,38712.0,0.1667]
[1643741582566,0.001222,38717.0,38712.0,0.231281]
[1643741582766,0.001222,38717.0,38712.0,0.181281]
[1643741583421,0.001222,38717.0,38712.0,0.601281]
[1643741583622,0.43179248,38725.0,38712.0,0.601281]
[1643741583819,0.00128736,38716.0,38712.0,0.62269253]
[1643741584019,0.00128736,38716.0,38713.0,0.349259]
[1643741584626,6.21481288,38727.0,38715.0,1.4]
[1643741584823,6.21352588,38727.0,38722.0,0.12515181]
[1643741585621,6.21352588,38727.0,38722.0,0.3069923]
[1643741587471,0.00120855,38726.0,38722.0,0.3069923]
[1643741588072,0.00120855,38726.0,38722.0,0.18184049]
[1643741589571,6.21352588,38727.0,38722.0,0.18184049]
[1643741589770,0.00120855,38726.0,38722.0,0.18184049]
[1643741590810,6.21352588,38727.0,38722.0,0.18184049]
[1643741591010,0.00121849,38726.0,38722.0,0.18184049]
[1643741591210,0.21376239,38726.0,38722.0,0.18184049]
[1643741591420,0.00121849,38726.0,38722.0,0.18184049]
[1643741591614,6.19974437,38727.0,38720.0,0.064569]
[1643741591912,6.19974437,38727.0,38718.0,0.95]
[1643741592112,6.19974437,38727.0,38722.0,0.11148153]
[1643741592512,6.19974437,38727.0,38721.0,0.02023708]
[1643741592712,6.19974437,38727.0,38719.0,0.26892959]
[1643741592913,6.19974437,38727.0,38719.0,0.33350059]
[1643741593512,6.19974437,38727.0,38719.0,0.42473584]
[1643741593713,6.19974437,38727.0,38719.0,0.7401474]
[1643741593921,6.19974437,38727.0,38722.0,0.27954451]
[1643741594163,6.19974437,38727.0,38721.0,0.064568]
[1643741596763,6.19474437,38727.0,38721.0,0.34769768]
[1643741596963,6.19474437,38727.0,38721.0,0.129133]
[1643741597162,6.19474437,38727.0,38721.0,0.34837071]
[1643741597363,6.19474437,38727.0,38725.0,0.10841447]
[1643741597762,6.19474437,38727.0,38724.0,0.064566]
[1643741599221,6.19474437,38727.0,38724.0,0.18761422]
[1643741599817,6.19474437,38727.0,38724.0,0.064566]
[1643741603661,6.19474437,38727.0,38722.0,0.24435542]
[1643741603861,6.19474437,38727.0,38722.0,0.30892342]
[1643741604063,6.19181696,38727.0,38722.0,0.20892342]
[1643741604262,6.19181696,38727.0,38723.0,0.05]
[1643741605163,6.19181696,38727.0,38721.0,0.1]
[1643741605425,6.24331696,38727.0,38720.0,0.279129]
[1643741605615,6.24331696,38727.0,38720.0,0.2]
[1643741606016,6.19181696,38727.0,38720.0,0.2]
[1643741606216,6.19181696,38727.0,38720.0,0.2944477]
[1643741606416,6.19181696,38727.0,38720.0,0.1944477]
[1643741607215,0.25733436,38725.0,38720.0,0.1944477]
[1643741607421,0.25733436,38725.0,38718.0,0.07626008]
[1643741607616,0.25733436,38725.0,38718.0,0.074911]
[1643741607816,6.19181696,38727.0,38718.0,0.07626008]
[1643741608616,6.19181696,38727.0,38720.0,0.064573]
[1643741608815,6.46896565,38727.0,38720.0,0.064573]
[1643741610066,6.19181696,38727.0,38720.0,0.064573]
[1643741611270,6.49113306,38727.0,38720.0,0.064573]
[1643741611468,6.49044509,38727.0,38720.0,0.064573]
[1643741612470,6.49044509,38727.0,38718.0,0.064577]
[1643741612669,0.17427285,38726.0,38718.0,0.06592608]
[1643741617379,0.1742761,38726.0,38719.0,0.05]
[1643741617576,0.1742761,38726.0,38721.0,0.09013839]
[1643741617777,0.1742761,38726.0,38721.0,0.19013839]
[1643741618576,0.1742761,38726.0,38721.0,0.09013839]
[1643741618778,0.1742761,38726.0,38721.0,0.14013839]
[1643741618977,0.1742761,38726.0,38721.0,0.12076949]
[1643741619179,0.1742761,38726.0,38721.0,0.17076949]
[1643741619378,0.1742761,38726.0,38722.0,0.06457]
[1643741619585,6.19112899,38727.0,38723.0,0.349259]
[1643741619783,6.19112899,38727.0,38724.0,0.129121]
[1643741620178,6.19112899,38727.0,38724.0,0.179121]
[1643741620620,5.38086756,38727.0,38725.0,0.413819]
[1643741620821,0.38039594,38736.0,38726.0,1.7313899]
[1643741620822,0.00140191,38736.0,38726.0,1.7313899]
[1643741621022,0.0014157,38728.0,38727.0,1.800759]
[1643741621218,0.00140191,38736.0,38728.0,2.813]
[1643741621419,0.00140191,38736.0,38729.0,0.0515]
[1643741621622,0.30840891,38743.0,38740.0,0.09913576]
[1643741621820,0.30840891,38743.0,38740.0,0.0736357]
[1643741622023,0.37899403,38747.0,38740.0,0.1736357]
[1643741622222,0.37899403,38750.0,38741.0,0.349259]
[1643741622420,0.37899403,38753.0,38741.0,0.349259]
[1643741622624,0.37899403,38753.0,38742.0,0.1]
[1643741622819,0.37899403,38753.0,38743.0,0.064525]
[1643741623020,0.37899403,38754.0,38746.0,0.064524]
[1643741623224,0.37899403,38756.0,38747.0,0.1555453]
[1643741623422,0.37899403,38757.0,38747.0,0.09102197]
[1643741623624,0.1,38766.0,38748.0,0.349259]
[1643741623625,0.37899403,38760.0,38748.0,0.349259]
[1643741623825,0.26024698,38762.0,38748.0,0.349259]
[1643741623826,0.37899403,38761.0,38748.0,0.349259]
[1643741624021,0.37899403,38761.0,38747.0,0.09102197]
[1643741624266,0.37899403,38761.0,38748.0,0.35042866]
[1643741624468,0.63924101,38762.0,38754.0,0.064513]
[1643741624668,0.26024698,38762.0,38754.0,0.064513]
[1643741624874,0.27877016,38762.0,38754.0,0.064513]
[1643741625969,0.00141692,38760.0,38754.0,0.064513]
[1643741626570,0.09262031,38770.0,38754.0,0.064513]
[1643741626769,0.01850131,38768.0,38761.0,0.01852318]
[1643741626971,0.349259,38767.0,38761.0,0.01852318]
[1643741627169,0.01850131,38768.0,38761.0,0.01852318]
[1643741627370,0.01,38769.0,38756.0,0.064506]
[1643741627569,0.29609069,38764.0,38756.0,0.064506]
[1643741627771,0.01,38769.0,38756.0,0.064506]
[1643741628227,0.01,38769.0,38761.0,0.00069503]
[1643741628725,0.349259,38768.0,38761.0,0.00069503]
[1643741628925,0.34877705,38767.0,38761.0,0.00069503]
[1643741629128,0.349259,38766.0,38761.0,0.00069503]
[1643741629323,0.349259,38766.0,38749.0,0.24372138]
[1643741629524,0.25249457,38765.0,38762.0,0.00069501]
[1643741629725,0.70373002,38764.0,38762.0,0.00069501]
[1643741630324,1.4900071,38763.0,38762.0,0.00069501]
[1643741630530,1.9892661,38763.0,38748.0,0.1132]
[1643741630729,0.0515,38762.0,38739.0,0.1]
[1643741630928,1.413,38761.0,38737.0,0.3685]
[1643741631126,0.064542,38754.0,38737.0,0.3685]
[1643741631326,0.73221513,38753.0,38737.0,0.3685]
[1643741631529,0.25048437,38746.0,38737.0,0.47159228]
[1643741631970,0.25048437,38746.0,38743.0,0.0013892]
[1643741632168,0.349259,38745.0,38743.0,0.0013892]
[1643741632967,0.349259,38745.0,38740.0,0.09005465]
[1643741633171,0.25048437,38746.0,38742.0,0.00138924]
[1643741633568,0.30048437,38746.0,38742.0,0.00138924]
[1643741633770,0.25048437,38746.0,38742.0,0.00138924]
[1643741633969,0.0515,38745.0,38742.0,0.00138924]
[1643741634170,0.0515,38745.0,38740.0,0.09005465]
[1643741634370,0.0515,38745.0,38742.0,0.00138924]
[1643741635170,0.25048437,38746.0,38740.0,0.09005465]
[1643741635425,0.25048437,38746.0,38742.0,0.00138925]
[1643741635821,0.23303877,38745.0,38742.0,0.00138925]
[1643741636021,0.57816563,38745.0,38742.0,0.00138925]
[1643741636220,0.400759,38745.0,38742.0,0.00138925]
[1643741636419,0.400759,38745.0,38736.0,0.02074198]
[1643741636621,0.24577734,38739.0,38736.0,0.02074198]
[1643741636820,0.0515,38740.0,38732.0,0.09157327]
[1643741637920,0.28414977,38738.0,38734.0,0.00138952]
[1643741638119,0.0515,38737.0,38734.0,0.00138952]
[1643741638819,0.0515,38737.0,38732.0,0.09157327]
[1643741639021,0.0515,38737.0,38734.0,0.00138954]
[1643741640067,0.0515,38737.0,38735.0,0.09693157]
[1643741640367,0.0515,38737.0,38734.0,0.00138954]
[1643741640769,0.0515,38737.0,38735.0,0.349259]
[1643741642367,0.1,38749.0,38736.0,1.1]
[1643741642567,0.2651,38750.0,38736.0,1.1]
[1643741642766,0.1515,38750.0,38736.0,1.1]
[1643741643028,0.2515,38750.0,38736.0,1.1]
[1643741643229,0.29488173,38747.0,38740.0,0.08301332]
[1643741643829,0.29488173,38747.0,38742.0,0.00138925]
[1643741644830,0.29488173,38747.0,38736.0,1.1]
[1643741645029,0.29488173,38747.0,38743.0,0.00138922]
[1643741646029,0.29488173,38747.0,38740.0,0.11429703]
[1643741646232,0.29488173,38747.0,38743.0,0.0013892]
[1643741647372,0.29488173,38747.0,38740.0,0.11429703]
[1643741647572,0.29488173,38747.0,38743.0,0.0013892]
[1643741647771,0.34488173,38747.0,38743.0,0.0013892]
[1643741648176,0.0515,38750.0,38743.0,0.0013892]
[1643741648574,0.0515,38750.0,38740.0,0.35241168]
[1643741648776,0.1742,38755.0,38745.0,0.00138915]
[1643741648777,0.05,38753.0,38745.0,0.00138915]
[1643741648978,0.1242,38755.0,38745.0,0.00138915]
[1643741649175,0.1242,38755.0,38750.0,0.10389882]
[1643741649377,0.3934,38762.0,38751.0,0.24372975]
[1643741649576,0.118,38764.0,38751.0,0.24372975]
[1643741649775,0.48424575,38767.0,38751.0,0.24363822]
[1643741649979,0.32607314,38767.0,38755.0,0.00138879]
[1643741650174,0.26903345,38761.0,38756.0,0.10244429]
[1643741650425,0.26903345,38761.0,38755.0,0.00138879]
[1643741651020,0.26903345,38761.0,38751.0,0.24388831]
[1643741651220,0.26903345,38761.0,38756.0,0.00138873]
[1643741652020,0.00142513,38767.0,38756.0,0.00138873]
[1643741652221,0.118,38768.0,38758.0,0.12068943]
[1643741652420,0.118,38768.0,38753.0,0.129025]
[1643741652421,0.00142514,38767.0,38759.0,0.25188714]
[1643741652624,0.00142514,38767.0,38757.0,0.00138872]
[1643741652819,0.00142514,38767.0,38760.0,0.0881668]
[1643741653420,0.24556256,38768.0,38763.0,0.11120571]
[1643741653620,0.01,38769.0,38763.0,0.11120571]
[1643741653621,0.00142523,38767.0,38763.0,0.11120571]
[1643741653822,0.00142523,38767.0,38763.0,0.17570271]
[1643741654271,0.00142523,38767.0,38763.0,0.22570271]
[1643741654475,0.01,38769.0,38764.0,0.349259]
[1643741654872,0.01,38769.0,38761.0,0.0515]
[1643741654873,0.00142526,38767.0,38761.0,0.0515]
[1643741655171,0.00142526,38767.0,38759.0,0.00138863]
[1643741655373,0.00142526,38767.0,38761.0,0.064502]
[1643741655570,0.00142526,38767.0,38762.0,0.349259]
[1643741655771,0.01,38769.0,38763.0,0.1]
[1643741655975,0.00142524,38767.0,38764.0,0.349259]
[1643741656172,0.00142524,38767.0,38761.0,0.064502]
[1643741656373,0.00142524,38767.0,38762.0,0.349259]
[1643741656575,0.00142524,38767.0,38759.0,0.25846572]
[1643741656773,0.00142524,38767.0,38760.0,0.349259]
[1643741657073,0.28240557,38766.0,38760.0,0.349259]
[1643741657276,0.28240557,38766.0,38759.0,0.25846572]
[1643741657931,0.00142522,38767.0,38761.0,0.064496]
[1643741658122,0.01,38769.0,38763.0,0.1004846]
[1643741658318,0.00142521,38767.0,38762.0,0.064494]
[1643741658720,0.00142521,38767.0,38765.0,0.09734152]
[1643741659317,0.01,38769.0,38765.0,0.09734152]
[1643741659517,0.00142526,38768.0,38765.0,0.09734152]
[1643741660122,0.00142526,38768.0,38766.0,0.25294277]
[1643741660321,0.00142526,38768.0,38767.0,0.999259]
[1643741660520,0.01,38769.0,38767.0,1.2889252]
[1643741660721,0.01142524,38769.0,38767.0,1.049259]
[1643741660919,0.01142524,38769.0,38767.0,0.399259]
[1643741661420,0.01142524,38769.0,38768.0,0.10039412]
[1643741661667,0.01,38769.0,38768.0,0.44965312]
[1643741661865,0.01,38769.0,38768.0,0.10039412]
[1643741662865,0.01,38769.0,38765.0,0.09734152]
[1643741664269,0.01,38769.0,38761.0,0.24694483]
[1643741664465,0.01142524,38769.0,38760.0,0.1144]
[1643741664668,0.01142524,38769.0,38759.0,0.00138863]
[1643741664669,0.0515,38768.0,38759.0,0.00138863]
[1643741665268,0.29915676,38764.0,38757.0,0.01836991]
[1643741665551,0.0515,38763.0,38759.0,0.00138863]
[1643741666352,0.0515,38763.0,38759.0,0.00124977]
[1643741666552,0.0515,38763.0,38747.0,0.56793497]
[1643741666752,0.22019278,38755.0,38749.0,0.10302678]
[1643741666955,0.22019278,38755.0,38748.0,0.1148]
[1643741667154,0.22019278,38755.0,38744.0,0.24396076]
[1643741667359,0.0515,38754.0,38743.0,0.129038]
[1643741667559,0.0515,38754.0,38742.0,0.7865]
[1643741667753,0.0515,38754.0,38742.0,0.4197]
[1643741668153,0.0515,38754.0,38745.0,0.010327]
[1643741668353,0.0515,38754.0,38748.0,0.11918595]
[1643741669055,0.0515,38754.0,38750.0,0.02638825]
[1643741670083,0.0515,38754.0,38750.0,0.025]
[1643741670381,0.0515,38754.0,38750.0,0.02638825]
[1643741671382,0.0515,38754.0,38750.0,0.025]
[1643741671582,0.0515,38754.0,38750.0,0.02638825]
[1643741671781,0.0415,38754.0,38750.0,0.02638825]
[1643741671988,0.13597875,38754.0,38750.0,0.02638825]
[1643741672184,0.349259,38753.0,38750.0,0.02638825]
[1643741672383,1.6939,38751.0,38750.0,0.02638825]
[1643741672684,2.094659,38751.0,38750.0,0.02638827]
[1643741673726,2.094659,38751.0,38750.0,0.025]
[1643741674124,1.044659,38751.0,38750.0,0.025]
[1643741675727,1.04397151,38751.0,38750.0,0.025]
[1643741677176,0.69471251,38751.0,38750.0,0.025]
[1643741678373,0.0515,38751.0,38750.0,0.025]
[1643741681822,0.400759,38751.0,38750.0,0.025]
[1643741682022,1.4,38750.0,38749.0,0.00138831]
[1643741682222,1.900759,38750.0,38742.0,0.0485346]
[1643741682524,0.449259,38749.0,38740.0,0.002]
[1643741682720,0.0515,38748.0,38740.0,0.002]
[1643741683319,2.52643996,38748.0,38740.0,0.002]
[1643741683520,2.52643996,38748.0,38742.0,0.00138854]
[1643741683719,0.0515,38748.0,38742.0,0.00138854]
[1643741683919,0.23952733,38747.0,38742.0,0.00138854]
[1643741684175,0.0515,38746.0,38742.0,0.00138854]
[1643741684575,0.0515,38746.0,38740.0,0.1258779]
[1643741684775,0.0515,38746.0,38742.0,0.00138854]
[1643741685775,0.0515,38746.0,38741.0,0.06453351]
[1643741685976,0.0515,38746.0,38742.0,0.00138854]
[1643741686876,0.0515,38746.0,38743.0,0.349259]
[1643741687075,0.0515,38746.0,38743.0,0.064527]
[1643741687280,0.0515,38751.0,38744.0,0.349259]
[1643741687475,0.0515,38751.0,38743.0,0.05]
[1643741687925,0.0515,38751.0,38742.0,0.05138854]
[1643741688117,0.0515,38751.0,38743.0,0.064532]
[1643741688318,0.0515,38751.0,38745.0,0.00138845]
[1643741689018,0.0515,38751.0,38748.0,0.09870881]
[1643741689517,0.0515,38751.0,38748.0,0.10009715]
[1643741690522,0.0515,38751.0,38748.0,0.09870881]
[1643741690722,0.0515,38751.0,38749.0,0.09441782]
[1643741690924,0.0515,38756.0,38749.0,0.09441782]
[1643741691123,0.40005374,38761.0,38749.0,0.14441782]
[1643741691322,0.0515,38761.0,38749.0,0.19441782]
[1643741691523,0.021574,38762.0,38749.0,0.19441782]
[1643741691772,0.24779341,38760.0,38754.0,0.10322435]
[1643741691971,0.24779341,38760.0,38754.0,0.00138813]
[1643741692172,0.021574,38762.0,38755.0,0.10135507]
[1643741692373,0.021574,38762.0,38756.0,0.23966025]
[1643741692573,0.021574,38762.0,38756.0,0.28966025]
[1643741692772,0.021574,38762.0,38756.0,0.23966025]
[1643741692973,0.01,38769.0,38756.0,0.24781121]
[1643741693174,0.00142498,38767.0,38757.0,0.001388]
[1643741693371,0.00142498,38767.0,38759.0,0.09262404]
[1643741694172,0.22411498,38768.0,38759.0,0.09262404]
[1643741694371,0.22411498,38768.0,38758.0,0.064504]
[1643741694372,0.00142506,38767.0,38758.0,0.00138797]
[1643741694570,0.00142506,38767.0,38758.0,0.00121467]
[1643741695174,1.31050159,38759.0,38758.0,0.00121467]
[1643741695429,1.31050159,38759.0,38751.0,0.09955435]
[1643741695620,0.21050159,38759.0,38751.0,0.09955435]
[1643741695826,0.1181,38768.0,38752.0,0.23924476]
[1643741696021,0.1181,38768.0,38754.0,0.08253395]
[1643741696219,0.1181,38768.0,38754.0,0.18253395]
[1643741696421,0.1181,38768.0,38754.0,0.48644001]
[1643741696820,0.26742086,38764.0,38754.0,0.30390606]
[1643741697020,0.26742086,38764.0,38754.0,0.064511]
[1643741697223,0.14681661,38767.0,38754.0,0.30501308]
[1643741697419,0.14681661,38767.0,38754.0,0.36969128]
[1643741697420,0.00073142,38767.0,38754.0,0.36969128]
[1643741697623,0.00073142,38767.0,38756.0,0.064506]
[1643741697821,0.1181,38768.0,38757.0,0.24396982]
[1643741698020,0.00073142,38767.0,38757.0,0.24396982]
[1643741698220,0.27841094,38767.0,38757.0,0.24396982]
[1643741698424,0.27841094,38767.0,38756.0,0.064506]
[1643741698819,0.00073142,38767.0,38759.0,0.10658567]
[1643741699023,0.01,38769.0,38759.0,0.10658567]
[1643741699278,0.00142483,38767.0,38759.0,0.10658567]
[1643741700274,0.25377981,38768.0,38759.0,0.10658567]
[1643741700478,0.00142486,38767.0,38759.0,0.10658567]
[1643741701374,0.22657894,38767.0,38759.0,0.10658567]
[1643741701575,0.2280038,38767.0,38756.0,0.10138716]
[1643741701775,0.00142486,38767.0,38756.0,0.00138716]
[1643741701977,0.28145025,38762.0,38756.0,0.00138716]
[1643741702178,0.3269512,38761.0,38756.0,0.00095186]
[1643741702376,0.17357052,38759.0,38756.0,0.00095186]
[1643741702576,0.17357052,38759.0,38751.0,0.05]
[1643741702577,0.69957161,38758.0,38751.0,0.05]
[1643741702777,0.35031261,38758.0,38749.0,0.02103001]
[1643741703034,0.25011616,38753.0,38749.0,0.02103001]
[1643741703436,0.0515,38752.0,38749.0,0.02103001]
[1643741703640,0.2298102,38751.0,38749.0,0.02103001]
[1643741703938,1.850759,38750.0,38749.0,0.02172319]
[1643741704535,2.13342191,38750.0,38749.0,0.02172319]
[1643741704936,2.13342191,38750.0,38749.0,0.02103001]
[1643741705534,2.13342191,38750.0,38748.0,0.0013853]
[1643741705734,1.515425,38749.0,38748.0,0.0013853]
[1643741705933,1.916184,38749.0,38748.0,0.0013853]
[1643741706138,1.916184,38749.0,38739.0,0.09144571]
[1643741706335,1.566925,38749.0,38747.0,0.00138534]
[1643741706539,1.7098532,38748.0,38747.0,0.00138534]
[1643741706770,1.7613532,38748.0,38747.0,0.00138534]
[1643741707469,0.21798685,38745.0,38740.0,0.002]
[1643741707673,0.0515,38744.0,38740.0,0.002]
[1643741708070,0.064549,38747.0,38740.0,0.002]
[1643741708273,0.0515,38746.0,38742.0,0.01822942]
[1643741708475,0.0515,38747.0,38742.0,0.01822942]
[1643741708872,0.0515,38747.0,38742.0,0.01961492]
[1643741709073,0.0515,38747.0,38746.0,0.10556304]
[1643741709473,0.0515,38747.0,38742.0,0.0013855]
[1643741709874,0.24964616,38746.0,38740.0,0.002]
[1643741710072,0.0515,38747.0,38743.0,0.00138548]
[1643741710272,0.24903899,38745.0,38743.0,0.00138548]
[1643741710523,0.23379725,38746.0,38743.0,0.00138548]
[1643741711022,0.0515,38747.0,38740.0,0.002]
[1643741711228,0.0515,38747.0,38743.0,0.00138548]
[1643741711422,0.26723075,38746.0,38743.0,0.00138548]
[1643741712225,0.0515,38745.0,38740.0,0.002]
[1643741712425,0.0515,38745.0,38743.0,0.00138548]
[1643741713525,0.0515,38745.0,38742.0,0.0013855]
[1643741714664,0.0515,38745.0,38740.0,0.002]
[1643741714865,0.0515,38745.0,38742.0,0.00138551]
[1643741715766,0.0515,38745.0,38741.0,0.08131938]
[1643741715967,0.27657016,38751.0,38742.0,0.00138551]